Workbook

Sheet ДМШ
C1: Кол-во детей | D1: Общее количество педагогов | E1: Кол-во педагогов, имеющие высшую и первую кв.кактегории | F1: доля | G1: балл | H1: место | I1: Участие педагогов в проф.конкурсах | W1: Выступление педагогов на семинарах, конференциях | AK1: Методические семинары, конференции, проводимые на базе учреждения | AY1: Руководитель ГМО | AZ1: Участие ОО в конкурсах ОО | BH1: Грантовая активность | BL1: Доступность и открытость | BQ1: Безопасные условия | BU1: Обеспечение образовательного процесса | CC1: Результаты воспитанников | CQ1: Городские меропряития | DB1: Эффективность управления
A2: район | B2: Учреждение | I2: городской | J2: доля | K2: балл | L2: Республиканский | M2: доля | N2: балл | O2: Всероссийский | P2: доля | Q2: балл | R2: Международный | S2: доля | T2: балл | U2: итоговый балл | V2: место | W2: городской | X2: доля | Y2: балл | Z2: Республиканский | AA2: доля | AB2: балл | AC2: Всероссийский | AD2: доля | AE2: балл | AF2: Международный | AG2: доля | AH2: балл | AI2: итоговый балл | AJ2: место | AK2: городской | AL2: доля | AM2: балл | AN2: Республиканский | AO2: доля | AP2: балл | AQ2: Всероссийский | AR2: доля | AS2: балл | AT2: Международный | AU2: доля | AV2: балл | AW2: итоговый балл | AX2: место | AZ2: Республиканский | BA2: балл | BB2: Всероссийский | BC2: балл | BD2: Международный | BE2: балл | BF2: итоговый балл | BG2: место | BH2: Учреждения | BI2: Педагогов | BJ2: балл | BK2: место | BL2: Наличие публичного отчета | BM2: Наличие финансового отчета | BN2: Наличие оперативной информации | BO2: балл | BP2: место | BQ2: Налииче детского травматизма | BR2: Наличие взрослого травматизма | BS2: балл | BT2: место | BU2: Кол-во детей-инвалидов, ОВЗ | BV2: Доля детей-инвалидов, ОВЗ | BW2: балл | BX2: Наличие адаптированной программы | BY2: балл | BZ2: иттговый балл | CA2: место | CB2: Кол-во выпускников, поступившие в ВУЗы | CC2: городской | CD2: доля | CE2: балл | CF2: Республиканский | CG2: доля | CH2: балл | CI2: Всероссийский | CJ2: доля | CK2: балл | CL2: Международный | CM2: доля | CN2: балл | CO2: итоговый балл | CP2: место | CQ2: НВП | CR2: 9 Мая | CS2: День защиты детей | CT2: день города и РТ | CU2: Закрытие олимпиад | CV2: Новые имена | CW2: Стипендиаты МЭРа | CX2: Иные городские мероприятия | CY2: Балл | CZ2: место | DA2: Объем средств, привлеченных за счет оказания платных услуг | DB2: объем средств из расчета на 1 чел. | DC2: балл | DD2: Наличие жалоб | DE2: Наличие дисциплинарных взысканий | DF2: балл | DG2: место | DH2: итоговые баллы | DI2: рейтинг
CB3: 0
A4: Вах | B4: ДМШ № 26 | C4: 1390 | D4: 23 | E4: 13 | F4: =E4*100/D4 -> 57 | G4: 3 | H4: 1 | I4: 10 | J4: =I4*100/D4 -> 43.5 | K4: =J4*2 -> 86.95652174 | L4: 32 | M4: =L4*100/D4 -> 139.1304348 | N4: =M4*2 -> 278.2608696 | O4: 44 | P4: =O4*100/D4 -> 191.3043478 | Q4: =P4*3 -> 573.9130435 | R4: 17 | S4: =R4*100/D4 -> 73.91304348 | T4: =S4*3 -> 221.7391304 | U4: =K4+N4+Q4+T4 -> 1160.9 | V4: 1 | W4: 7 | X4: =W4*100/D4 -> 30.43478261 | Y4: =X4*2 -> 60.86956522 | Z4: 21 | AA4: =Z4*100/D4 -> 91.30434783 | AB4: =AA4*2 -> 182.6086957 | AC4: 138 | AD4: =AC4*100/D4 -> 600 | AE4: =AD4*3 -> 1800 | AF4: 72 | AG4: =AF4*100/D4 -> 313.0434783 | AH4: =AG4*3 -> 939.1304348 | AI4: =Y4+AB4+AE4+AH4 -> 2982.608696 | AJ4: 1 | AK4: 5 | AL4: =AK4*100/D4 -> 21.73913043 | AM4: =AL4*2 -> 43.47826087 | AN4: 2 | AO4: =AN4*100/D4 -> 8.695652174 | AP4: =AO4*2 -> 17.39130435 | AQ4: 1 | AR4: =AQ4*100/D4 -> 4.347826087 | AS4: =AR4*3 -> 13.04347826 | AT4: 1 | AU4: =AT4*100/D4 -> 4.347826087 | AV4: =AU4*3 -> 13.04347826 | AW4: =AM4+AP4+AS4+AV4 -> 86.95652174 | AX4: 4 | AY4: 5 | AZ4: 0 | BA4: =AZ4*2 -> 0 | BB4: 8 | BC4: =BB4*3 -> 24 | BD4: 0 | BE4: =BD4*4 -> 0 | BF4: =BA4+BC4+BE4 -> 24 | BG4: 2 | BH4: 0 | BI4: 3 | BJ4: =BH4+BI4 -> 3 | BK4: 6 | BL4: 1 | BM4: 1 | BN4: 1 | BO4: =BL4+BM4+BN4 -> 3 | BP4: 1 | BQ4: 5 | BR4: 5 | BS4: 5 | BT4: 1 | BU4: 0 | BV4: 0.0 | BW4: 0 | BX4: 0 | BY4: 0 | BZ4: =BJ4+BO4+BS4+BW4+BY4 -> 11 | CA4: 7 | CB4: 0 | CC4: 0 | CD4: =CC4*100/C4 -> 0 | CE4: =CD4*2 -> 0 | CF4: 0 | CG4: =CF4*100/C4 -> 0 | CH4: =CG4*2 -> 0 | CI4: 0 | CJ4: =CI4*100/C4 -> 0 | CK4: =CJ4*3 -> 0 | CL4: 0 | CM4: =CL4*100/C4 -> 0 | CN4: =CM4*4 -> 0 | CO4: =CE4+CH4+CK4+CN4 -> 0.0 | CP4: 0 | CQ4: 0 | CR4: 0 | CS4: 5 | CT4: 5 | CU4: 0 | CV4: 5 | CW4: 5 | CX4: 5 | CY4: =CQ4+CR4+CS4+CT4+CX4 -> 15 | CZ4: 11 | DB4: =DA4/C4 -> 0 | DC4: 0 | DD4: 0 | DE4: 0 | DF4: =DC4+DD4+DE4 -> 0 | DG4: 8 | DH4: =G4+U4+AI4+AW4+BF4+BZ4+CO4+CY4+DF4 -> 4283 | DI4: 1
A5: Вах | B5: ДШИ им.Бал. | C5: 1390 | D5: 23 | E5: 13 | F5: 57 | G5: 3 | H5: 1 | I5: 10 | J5: 43.5 | K5: 86.95652174 | L5: 32 | M5: 139.1304348 | N5: 278.2608696 | O5: 44 | P5: 191.3043478 | Q5: 573.9130435 | R5: 17 | S5: 73.91304348 | T5: 221.7391304 | U5: 1160.9 | V5: 1 | W5: 7 | X5: 30.43478261 | Y5: 60.86956522 | Z5: 21 | AA5: 91.30434783 | AB5: 182.6086957 | AC5: 138 | AD5: 600 | AE5: 1800 | AF5: 72 | AG5: 313.0434783 | AH5: 939.1304348 | AI5: 2982.608696 | AJ5: 1 | AK5: 5 | AL5: 21.73913043 | AM5: 43.47826087 | AN5: 2 | AO5: 8.695652174 | AP5: 17.39130435 | AQ5: 1 | AR5: 4.347826087 | AS5: 13.04347826 | AT5: 1 | AU5: 4.347826087 | AV5: 13.04347826 | AW5: 86.95652174 | AX5: 4 | AY5: 5 | AZ5: 0 | BA5: 0 | BB5: 8 | BC5: 24 | BD5: 0 | BE5: 0 | BF5: 24 | BG5: 2 | BH5: 0 | BI5: 3 | BJ5: 3 | BK5: 6 | BL5: 1 | BM5: 1 | BN5: 1 | BO5: 3 | BP5: 1 | BQ5: 5 | BR5: 5 | BS5: 5 | BT5: 1 | BU5: 0 | BV5: 0.0 | BW5: 0 | BX5: 0 | BY5: 0 | BZ5: 11 | CA5: 7 | CB5: 0 | CC5: 0 | CD5: 0 | CE5: 0 | CF5: 0 | CG5: 0 | CH5: 0 | CI5: 0 | CJ5: 0 | CK5: 0 | CL5: 0 | CM5: 0 | CN5: 0 | CO5: 0.0 | CP5: 0 | CQ5: 0 | CR5: 0 | CS5: 5 | CT5: 5 | CU5: 0 | CV5: 5 | CW5: 5 | CX5: 5 | CY5: 15 | CZ5: 11 | DB5: 0 | DC5: 0 | DD5: 0 | DE5: 0 | DF5: 0 | DG5: 8 | DH5: 4283 | DI5: 1
A6: Вах | B6: ДМШ № 7 | C6: 1390 | D6: 23 | E6: 13 | F6: 57 | G6: 3 | H6: 1 | I6: 10 | J6: 43.5 | K6: 86.95652174 | L6: 32 | M6: 139.1304348 | N6: 278.2608696 | O6: 44 | P6: 191.3043478 | Q6: 573.9130435 | R6: 17 | S6: 73.91304348 | T6: 221.7391304 | U6: 1160.9 | V6: 1 | W6: 7 | X6: 30.43478261 | Y6: 60.86956522 | Z6: 21 | AA6: 91.30434783 | AB6: 182.6086957 | AC6: 138 | AD6: 600 | AE6: 1800 | AF6: 72 | AG6: 313.0434783 | AH6: 939.1304348 | AI6: 2982.608696 | AJ6: 1 | AK6: 5 | AL6: 21.73913043 | AM6: 43.47826087 | AN6: 2 | AO6: 8.695652174 | AP6: 17.39130435 | AQ6: 1 | AR6: 4.347826087 | AS6: 13.04347826 | AT6: 1 | AU6: 4.347826087 | AV6: 13.04347826 | AW6: 86.95652174 | AX6: 4 | AY6: 5 | AZ6: 0 | BA6: 0 | BB6: 8 | BC6: 24 | BD6: 0 | BE6: 0 | BF6: 24 | BG6: 2 | BH6: 0 | BI6: 3 | BJ6: 3 | BK6: 6 | BL6: 1 | BM6: 1 | BN6: 1 | BO6: 3 | BP6: 1 | BQ6: 5 | BR6: 5 | BS6: 5 | BT6: 1 | BU6: 0 | BV6: 0.0 | BW6: 0 | BX6: 0 | BY6: 0 | BZ6: 11 | CA6: 7 | CB6: 0 | CC6: 0 | CD6: 0 | CE6: 0 | CF6: 0 | CG6: 0 | CH6: 0 | CI6: 0 | CJ6: 0 | CK6: 0 | CL6: 0 | CM6: 0 | CN6: 0 | CO6: 0.0 | CP6: 0 | CQ6: 0 | CR6: 0 | CS6: 5 | CT6: 5 | CU6: 0 | CV6: 5 | CW6: 5 | CX6: 5 | CY6: 15 | CZ6: 11 | DB6: 0 | DC6: 0 | DD6: 0 | DE6: 0 | DF6: 0 | DG6: 8 | DH6: 4283 | DI6: 1
A7: Кир | B7: ДМШ № 1 | C7: 1390 | D7: 23 | E7: 13 | F7: 57 | G7: 3 | H7: 1 | I7: 10 | J7: 43.5 | K7: 86.95652174 | L7: 32 | M7: 139.1304348 | N7: 278.2608696 | O7: 44 | P7: 191.3043478 | Q7: 573.9130435 | R7: 17 | S7: 73.91304348 | T7: 221.7391304 | U7: 1160.9 | V7: 1 | W7: 7 | X7: 30.43478261 | Y7: 60.86956522 | Z7: 21 | AA7: 91.30434783 | AB7: 182.6086957 | AC7: 138 | AD7: 600 | AE7: 1800 | AF7: 72 | AG7: 313.0434783 | AH7: 939.1304348 | AI7: 2982.608696 | AJ7: 1 | AK7: 5 | AL7: 21.73913043 | AM7: 43.47826087 | AN7: 2 | AO7: 8.695652174 | AP7: 17.39130435 | AQ7: 1 | AR7: 4.347826087 | AS7: 13.04347826 | AT7: 1 | AU7: 4.347826087 | AV7: 13.04347826 | AW7: 86.95652174 | AX7: 4 | AY7: 5 | AZ7: 0 | BA7: 0 | BB7: 8 | BC7: 24 | BD7: 0 | BE7: 0 | BF7: 24 | BG7: 2 | BH7: 0 | BI7: 3 | BJ7: 3 | BK7: 6 | BL7: 1 | BM7: 1 | BN7: 1 | BO7: 3 | BP7: 1 | BQ7: 5 | BR7: 5 | BS7: 5 | BT7: 1 | BU7: 0 | BV7: 0.0 | BW7: 0 | BX7: 0 | BY7: 0 | BZ7: 11 | CA7: 7 | CB7: 0 | CC7: 0 | CD7: 0 | CE7: 0 | CF7: 0 | CG7: 0 | CH7: 0 | CI7: 0 | CJ7: 0 | CK7: 0 | CL7: 0 | CM7: 0 | CN7: 0 | CO7: 0.0 | CP7: 0 | CQ7: 0 | CR7: 0 | CS7: 5 | CT7: 5 | CU7: 0 | CV7: 5 | CW7: 5 | CX7: 5 | CY7: 15 | CZ7: 11 | DB7: 0 | DC7: 0 | DD7: 0 | DE7: 0 | DF7: 0 | DG7: 8 | DH7: 4283 | DI7: 1
A8: Кир | B8: ДМШ № 24 | C8: 1390 | D8: 23 | E8: 13 | F8: 57 | G8: 3 | H8: 1 | I8: 10 | J8: 43.5 | K8: 86.95652174 | L8: 32 | M8: 139.1304348 | N8: 278.2608696 | O8: 44 | P8: 191.3043478 | Q8: 573.9130435 | R8: 17 | S8: 73.91304348 | T8: 221.7391304 | U8: 1160.9 | V8: 1 | W8: 7 | X8: 30.43478261 | Y8: 60.86956522 | Z8: 21 | AA8: 91.30434783 | AB8: 182.6086957 | AC8: 138 | AD8: 600 | AE8: 1800 | AF8: 72 | AG8: 313.0434783 | AH8: 939.1304348 | AI8: 2982.608696 | AJ8: 1 | AK8: 5 | AL8: 21.73913043 | AM8: 43.47826087 | AN8: 2 | AO8: 8.695652174 | AP8: 17.39130435 | AQ8: 1 | AR8: 4.347826087 | AS8: 13.04347826 | AT8: 1 | AU8: 4.347826087 | AV8: 13.04347826 | AW8: 86.95652174 | AX8: 4 | AY8: 5 | AZ8: 0 | BA8: 0 | BB8: 8 | BC8: 24 | BD8: 0 | BE8: 0 | BF8: 24 | BG8: 2 | BH8: 0 | BI8: 3 | BJ8: 3 | BK8: 6 | BL8: 1 | BM8: 1 | BN8: 1 | BO8: 3 | BP8: 1 | BQ8: 5 | BR8: 5 | BS8: 5 | BT8: 1 | BU8: 0 | BV8: 0.0 | BW8: 0 | BX8: 0 | BY8: 0 | BZ8: 11 | CA8: 7 | CB8: 0 | CC8: 0 | CD8: 0 | CE8: 0 | CF8: 0 | CG8: 0 | CH8: 0 | CI8: 0 | CJ8: 0 | CK8: 0 | CL8: 0 | CM8: 0 | CN8: 0 | CO8: 0.0 | CP8: 0 | CQ8: 0 | CR8: 0 | CS8: 5 | CT8: 5 | CU8: 0 | CV8: 5 | CW8: 5 | CX8: 5 | CY8: 15 | CZ8: 11 | DB8: 0 | DC8: 0 | DD8: 0 | DE8: 0 | DF8: 0 | DG8: 8 | DH8: 4283 | DI8: 1
A9: Мос | B9: ТДМШ № 32 | C9: 1390 | D9: 23 | E9: 13 | F9: 57 | G9: 3 | H9: 1 | I9: 10 | J9: 43.5 | K9: 86.95652174 | L9: 32 | M9: 139.1304348 | N9: 278.2608696 | O9: 44 | P9: 191.3043478 | Q9: 573.9130435 | R9: 17 | S9: 73.91304348 | T9: 221.7391304 | U9: 1160.9 | V9: 1 | W9: 7 | X9: 30.43478261 | Y9: 60.86956522 | Z9: 21 | AA9: 91.30434783 | AB9: 182.6086957 | AC9: 138 | AD9: 600 | AE9: 1800 | AF9: 72 | AG9: 313.0434783 | AH9: 939.1304348 | AI9: 2982.608696 | AJ9: 1 | AK9: 5 | AL9: 21.73913043 | AM9: 43.47826087 | AN9: 2 | AO9: 8.695652174 | AP9: 17.39130435 | AQ9: 1 | AR9: 4.347826087 | AS9: 13.04347826 | AT9: 1 | AU9: 4.347826087 | AV9: 13.04347826 | AW9: 86.95652174 | AX9: 4 | AY9: 5 | AZ9: 0 | BA9: 0 | BB9: 8 | BC9: 24 | BD9: 0 | BE9: 0 | BF9: 24 | BG9: 2 | BH9: 0 | BI9: 3 | BJ9: 3 | BK9: 6 | BL9: 1 | BM9: 1 | BN9: 1 | BO9: 3 | BP9: 1 | BQ9: 5 | BR9: 5 | BS9: 5 | BT9: 1 | BU9: 0 | BV9: 0.0 | BW9: 0 | BX9: 0 | BY9: 0 | BZ9: 11 | CA9: 7 | CB9: 0 | CC9: 0 | CD9: 0 | CE9: 0 | CF9: 0 | CG9: 0 | CH9: 0 | CI9: 0 | CJ9: 0 | CK9: 0 | CL9: 0 | CM9: 0 | CN9: 0 | CO9: 0.0 | CP9: 0 | CQ9: 0 | CR9: 0 | CS9: 5 | CT9: 5 | CU9: 0 | CV9: 5 | CW9: 5 | CX9: 5 | CY9: 15 | CZ9: 11 | DB9: 0 | DC9: 0 | DD9: 0 | DE9: 0 | DF9: 0 | DG9: 8 | DH9: 4283 | DI9: 1
A10: Мос | B10: ДМШ № 13 | C10: 1390 | D10: 23 | E10: 13 | F10: 57 | G10: 3 | H10: 1 | I10: 10 | J10: 43.5 | K10: 86.95652174 | L10: 32 | M10: 139.1304348 | N10: 278.2608696 | O10: 44 | P10: 191.3043478 | Q10: 573.9130435 | R10: 17 | S10: 73.91304348 | T10: 221.7391304 | U10: 1160.9 | V10: 1 | W10: 7 | X10: 30.43478261 | Y10: 60.86956522 | Z10: 21 | AA10: 91.30434783 | AB10: 182.6086957 | AC10: 138 | AD10: 600 | AE10: 1800 | AF10: 72 | AG10: 313.0434783 | AH10: 939.1304348 | AI10: 2982.608696 | AJ10: 1 | AK10: 5 | AL10: 21.73913043 | AM10: 43.47826087 | AN10: 2 | AO10: 8.695652174 | AP10: 17.39130435 | AQ10: 1 | AR10: 4.347826087 | AS10: 13.04347826 | AT10: 1 | AU10: 4.347826087 | AV10: 13.04347826 | AW10: 86.95652174 | AX10: 4 | AY10: 5 | AZ10: 0 | BA10: 0 | BB10: 8 | BC10: 24 | BD10: 0 | BE10: 0 | BF10: 24 | BG10: 2 | BH10: 0 | BI10: 3 | BJ10: 3 | BK10: 6 | BL10: 1 | BM10: 1 | BN10: 1 | BO10: 3 | BP10: 1 | BQ10: 5 | BR10: 5 | BS10: 5 | BT10: 1 | BU10: 0 | BV10: 0.0 | BW10: 0 | BX10: 0 | BY10: 0 | BZ10: 11 | CA10: 7 | CB10: 0 | CC10: 0 | CD10: 0 | CE10: 0 | CF10: 0 | CG10: 0 | CH10: 0 | CI10: 0 | CJ10: 0 | CK10: 0 | CL10: 0 | CM10: 0 | CN10: 0 | CO10: 0.0 | CP10: 0 | CQ10: 0 | CR10: 0 | CS10: 5 | CT10: 5 | CU10: 0 | CV10: 5 | CW10: 5 | CX10: 5 | CY10: 15 | CZ10: 11 | DB10: 0 | DC10: 0 | DD10: 0 | DE10: 0 | DF10: 0 | DG10: 8 | DH10: 4283 | DI10: 1
A11: Прив | B11: ДШИ им.Дж.Файзи | C11: 654 | D11: 63 | E11: 51 | F11: 81 | G11: 3 | H11: 1 | I11: 22 | J11: 34.9 | K11: 69.84126984 | L11: 81 | M11: 128.5714286 | N11: 257.1428571 | O11: 61 | P11: 96.82539683 | Q11: 290.4761905 | R11: 101 | S11: 160.3174603 | T11: 480.952381 | U11: 1098.4 | V11: 2 | W11: 14 | X11: 22.22222222 | Y11: 44.44444444 | Z11: 21 | AA11: 33.33333333 | AB11: 66.66666667 | AC11: 12 | AD11: 19.04761905 | AE11: 57.14285714 | AF11: 14 | AG11: 22.22222222 | AH11: 66.66666667 | AI11: 234.9206349 | AJ11: 15 | AK11: 3 | AL11: 4.761904762 | AM11: =PRODUCT(AK11,2) -> 6 | AN11: 1 | AO11: 1.587301587 | AP11: =PRODUCT(AN11,2) -> 2 | AQ11: 0 | AR11: 0 | AS11: =AQ11*3 -> 0 | AT11: 0 | AU11: 0 | AV11: =AT11*3 -> 0 | AW11: 8 | AX11: 3 | AY11: 5 | AZ11: 0 | BA11: 0 | BB11: 0 | BC11: 0 | BD11: 0 | BE11: 0 | BF11: 0 | BG11: 5 | BH11: 4 | BI11: 1 | BJ11: 5 | BK11: 1 | BL11: 1 | BM11: 1 | BN11: 1 | BO11: 3 | BP11: 1 | BQ11: 0 | BR11: 0 | BS11: 0 | BT11: 0 | BU11: 8 | BV11: =BU11*100/C11 -> 1.22324159 | BW11: 3 | BX11: 1 | BY11: 1 | BZ11: =BW11+BY11 -> 4 | CA11: 3 | CB11: 2 | CC11: 158 | CD11: 24.15902141 | CE11: 48.31804281 | CF11: 140 | CG11: 21.40672783 | CH11: 42.81345566 | CI11: 125 | CJ11: 19.11314985 | CK11: 57.33944954 | CL11: 267 | CM11: 40.82568807 | CN11: =CM11*3 -> 122.4770642 | CO11: =CB11+CE11+CH11+CK11+CN11 -> 272.9 | CP11: 2 | CQ11: 5 | CR11: 5 | CS11: 5 | CT11: 5 | CU11: 0 | CV11: 0 | CW11: 5 | CX11: 0 | CY11: =CQ11+CR11+CS11+CT11+CU11+CV11+CW11+CX11 -> 25 | CZ11: 3 | DA11: 600000.00 | DB11: 917 | DC11: 2 | DD11: 5 | DE11: 5 | DF11: 12 | DG11: 4 | DH11: =H11+V11+AJ11+AX11+BG11+BK11+BP11+BT11+CA11+CP11+CZ11+DG11 -> 40 | DI11: 2
A12: Прив | B12: ДМШ № 8 | C12: 1390 | D12: 23 | E12: 13 | F12: 57 | G12: 3 | H12: 1 | I12: 10 | J12: 43.5 | K12: 86.95652174 | L12: 32 | M12: 139.1304348 | N12: 278.2608696 | O12: 44 | P12: 191.3043478 | Q12: 573.9130435 | R12: 17 | S12: 73.91304348 | T12: 221.7391304 | U12: 1160.9 | V12: 1 | W12: 7 | X12: 30.43478261 | Y12: 60.86956522 | Z12: 21 | AA12: 91.30434783 | AB12: 182.6086957 | AC12: 138 | AD12: 600 | AE12: 1800 | AF12: 72 | AG12: 313.0434783 | AH12: 939.1304348 | AI12: 2982.608696 | AJ12: 1 | AK12: 5 | AL12: 21.73913043 | AM12: =AL12*2 -> 43.47826087 | AN12: 2 | AO12: 8.695652174 | AP12: =AO12*2 -> 17.39130435 | AQ12: 1 | AR12: 4.347826087 | AS12: =AR12*3 -> 13.04347826 | AT12: 1 | AU12: 4.347826087 | AV12: =AU12*3 -> 13.04347826 | AW12: 86.95652174 | AX12: 4 | AY12: 5 | AZ12: 0 | BA12: 0 | BB12: 8 | BC12: 24 | BD12: 0 | BE12: 0 | BF12: 24 | BG12: 2 | BH12: 0 | BI12: 3 | BJ12: 3 | BK12: 6 | BL12: 1 | BM12: 1 | BN12: 1 | BO12: 3 | BP12: 1 | BQ12: 5 | BR12: 5 | BS12: 5 | BT12: 1 | BU12: 0 | BV12: 0.0 | BW12: 0 | BX12: 0 | BY12: 0 | BZ12: =BJ12+BO12+BS12+BW12+BY12 -> 11 | CA12: 7 | CB12: 0 | CC12: 0 | CD12: 0 | CE12: 0 | CF12: 0 | CG12: 0 | CH12: 0 | CI12: 0 | CJ12: 0 | CK12: 0 | CL12: 0 | CM12: 0 | CN12: =CM12*4 -> 0 | CO12: =CE12+CH12+CK12+CN12 -> 0.0 | CP12: 0 | CQ12: 0 | CR12: 0 | CS12: 5 | CT12: 5 | CU12: 0 | CV12: 5 | CW12: 5 | CX12: 5 | CY12: =CQ12+CR12+CS12+CT12+CX12 -> 15 | CZ12: 11 | DB12: 0 | DC12: 0 | DD12: 0 | DE12: 0 | DF12: 0 | DG12: 8 | DH12: =G12+U12+AI12+AW12+BF12+BZ12+CO12+CY12+DF12 -> 4283 | DI12: 1
A13: Прив | B13: ДМШ № 20 | C13: 1390 | D13: 23 | E13: 13 | F13: 57 | G13: 3 | H13: 1 | I13: 10 | J13: 43.5 | K13: 86.95652174 | L13: 32 | M13: 139.1304348 | N13: 278.2608696 | O13: 44 | P13: 191.3043478 | Q13: 573.9130435 | R13: 17 | S13: 73.91304348 | T13: 221.7391304 | U13: 1160.9 | V13: 1 | W13: 7 | X13: 30.43478261 | Y13: 60.86956522 | Z13: 21 | AA13: 91.30434783 | AB13: 182.6086957 | AC13: 138 | AD13: 600 | AE13: 1800 | AF13: 72 | AG13: 313.0434783 | AH13: 939.1304348 | AI13: 2982.608696 | AJ13: 1 | AK13: 5 | AL13: 21.73913043 | AM13: 43.47826087 | AN13: 2 | AO13: 8.695652174 | AP13: 17.39130435 | AQ13: 1 | AR13: 4.347826087 | AS13: 13.04347826 | AT13: 1 | AU13: 4.347826087 | AV13: 13.04347826 | AW13: 86.95652174 | AX13: 4 | AY13: 5 | AZ13: 0 | BA13: 0 | BB13: 8 | BC13: 24 | BD13: 0 | BE13: 0 | BF13: 24 | BG13: 2 | BH13: 0 | BI13: 3 | BJ13: 3 | BK13: 6 | BL13: 1 | BM13: 1 | BN13: 1 | BO13: 3 | BP13: 1 | BQ13: 5 | BR13: 5 | BS13: 5 | BT13: 1 | BU13: 0 | BV13: 0.0 | BW13: 0 | BX13: 0 | BY13: 0 | BZ13: 11 | CA13: 7 | CB13: 0 | CC13: 0 | CD13: 0 | CE13: 0 | CF13: 0 | CG13: 0 | CH13: 0 | CI13: 0 | CJ13: 0 | CK13: 0 | CL13: 0 | CM13: 0 | CN13: 0 | CO13: 0.0 | CP13: 0 | CQ13: 0 | CR13: 0 | CS13: 5 | CT13: 5 | CU13: 0 | CV13: 5 | CW13: 5 | CX13: 5 | CY13: 15 | CZ13: 11 | DB13: 0 | DC13: 0 | DD13: 0 | DE13: 0 | DF13: 0 | DG13: 8 | DH13: 4283 | DI13: 1
A14: Прив | B14: ДШИ | C14: 1390 | D14: 23 | E14: 13 | F14: 57 | G14: 3 | H14: 1 | I14: 10 | J14: 43.5 | K14: 86.95652174 | L14: 32 | M14: 139.1304348 | N14: 278.2608696 | O14: 44 | P14: 191.3043478 | Q14: 573.9130435 | R14: 17 | S14: 73.91304348 | T14: 221.7391304 | U14: 1160.9 | V14: 1 | W14: 7 | X14: 30.43478261 | Y14: 60.86956522 | Z14: 21 | AA14: 91.30434783 | AB14: 182.6086957 | AC14: 138 | AD14: 600 | AE14: 1800 | AF14: 72 | AG14: 313.0434783 | AH14: 939.1304348 | AI14: 2982.608696 | AJ14: 1 | AK14: 5 | AL14: 21.73913043 | AM14: 43.47826087 | AN14: 2 | AO14: 8.695652174 | AP14: 17.39130435 | AQ14: 1 | AR14: 4.347826087 | AS14: 13.04347826 | AT14: 1 | AU14: 4.347826087 | AV14: 13.04347826 | AW14: 86.95652174 | AX14: 4 | AY14: 5 | AZ14: 0 | BA14: 0 | BB14: 8 | BC14: 24 | BD14: 0 | BE14: 0 | BF14: 24 | BG14: 2 | BH14: 0 | BI14: 3 | BJ14: 3 | BK14: 6 | BL14: 1 | BM14: 1 | BN14: 1 | BO14: 3 | BP14: 1 | BQ14: 5 | BR14: 5 | BS14: 5 | BT14: 1 | BU14: 0 | BV14: 0.0 | BW14: 0 | BX14: 0 | BY14: 0 | BZ14: 11 | CA14: 7 | CB14: 0 | CC14: 0 | CD14: 0 | CE14: 0 | CF14: 0 | CG14: 0 | CH14: 0 | CI14: 0 | CJ14: 0 | CK14: 0 | CL14: 0 | CM14: 0 | CN14: 0 | CO14: 0.0 | CP14: 0 | CQ14: 0 | CR14: 0 | CS14: 5 | CT14: 5 | CU14: 0 | CV14: 5 | CW14: 5 | CX14: 5 | CY14: 15 | CZ14: 11 | DB14: 0 | DC14: 0 | DD14: 0 | DE14: 0 | DF14: 0 | DG14: 8 | DH14: 4283 | DI14: 1
A15: Прив | B15: ДМШ № 22 | C15: 1390 | D15: 23 | E15: 13 | F15: 57 | G15: 3 | H15: 1 | I15: 10 | J15: 43.5 | K15: 86.95652174 | L15: 32 | M15: 139.1304348 | N15: 278.2608696 | O15: 44 | P15: 191.3043478 | Q15: 573.9130435 | R15: 17 | S15: 73.91304348 | T15: 221.7391304 | U15: 1160.9 | V15: 1 | W15: 7 | X15: 30.43478261 | Y15: 60.86956522 | Z15: 21 | AA15: 91.30434783 | AB15: 182.6086957 | AC15: 138 | AD15: 600 | AE15: 1800 | AF15: 72 | AG15: 313.0434783 | AH15: 939.1304348 | AI15: 2982.608696 | AJ15: 1 | AK15: 5 | AL15: 21.73913043 | AM15: 43.47826087 | AN15: 2 | AO15: 8.695652174 | AP15: 17.39130435 | AQ15: 1 | AR15: 4.347826087 | AS15: 13.04347826 | AT15: 1 | AU15: 4.347826087 | AV15: 13.04347826 | AW15: 86.95652174 | AX15: 4 | AY15: 5 | AZ15: 0 | BA15: 0 | BB15: 8 | BC15: 24 | BD15: 0 | BE15: 0 | BF15: 24 | BG15: 2 | BH15: 0 | BI15: 3 | BJ15: 3 | BK15: 6 | BL15: 1 | BM15: 1 | BN15: 1 | BO15: 3 | BP15: 1 | BQ15: 5 | BR15: 5 | BS15: 5 | BT15: 1 | BU15: 0 | BV15: 0.0 | BW15: 0 | BX15: 0 | BY15: 0 | BZ15: 11 | CA15: 7 | CB15: 0 | CC15: 0 | CD15: 0 | CE15: 0 | CF15: 0 | CG15: 0 | CH15: 0 | CI15: 0 | CJ15: 0 | CK15: 0 | CL15: 0 | CM15: 0 | CN15: 0 | CO15: 0.0 | CP15: 0 | CQ15: 0 | CR15: 0 | CS15: 5 | CT15: 5 | CU15: 0 | CV15: 5 | CW15: 5 | CX15: 5 | CY15: 15 | CZ15: 11 | DB15: 0 | DC15: 0 | DD15: 0 | DE15: 0 | DF15: 0 | DG15: 8 | DH15: 4283 | DI15: 1
A16: Сов | B16: ДМШ № 21 | C16: 1390 | D16: 23 | E16: 13 | F16: 57 | G16: 3 | H16: 1 | I16: 10 | J16: 43.5 | K16: 86.95652174 | L16: 32 | M16: 139.1304348 | N16: 278.2608696 | O16: 44 | P16: 191.3043478 | Q16: 573.9130435 | R16: 17 | S16: 73.91304348 | T16: 221.7391304 | U16: 1160.9 | V16: 1 | W16: 7 | X16: 30.43478261 | Y16: 60.86956522 | Z16: 21 | AA16: 91.30434783 | AB16: 182.6086957 | AC16: 138 | AD16: 600 | AE16: 1800 | AF16: 72 | AG16: 313.0434783 | AH16: 939.1304348 | AI16: 2982.608696 | AJ16: 1 | AK16: 5 | AL16: 21.73913043 | AM16: 43.47826087 | AN16: 2 | AO16: 8.695652174 | AP16: 17.39130435 | AQ16: 1 | AR16: 4.347826087 | AS16: 13.04347826 | AT16: 1 | AU16: 4.347826087 | AV16: 13.04347826 | AW16: 86.95652174 | AX16: 4 | AY16: 5 | AZ16: 0 | BA16: 0 | BB16: 8 | BC16: 24 | BD16: 0 | BE16: 0 | BF16: 24 | BG16: 2 | BH16: 0 | BI16: 3 | BJ16: 3 | BK16: 6 | BL16: 1 | BM16: 1 | BN16: 1 | BO16: 3 | BP16: 1 | BQ16: 5 | BR16: 5 | BS16: 5 | BT16: 1 | BU16: 0 | BV16: 0.0 | BW16: 0 | BX16: 0 | BY16: 0 | BZ16: 11 | CA16: 7 | CB16: 0 | CC16: 0 | CD16: 0 | CE16: 0 | CF16: 0 | CG16: 0 | CH16: 0 | CI16: 0 | CJ16: 0 | CK16: 0 | CL16: 0 | CM16: 0 | CN16: 0 | CO16: 0.0 | CP16: 0 | CQ16: 0 | CR16: 0 | CS16: 5 | CT16: 5 | CU16: 0 | CV16: 5 | CW16: 5 | CX16: 5 | CY16: 15 | CZ16: 11 | DB16: 0 | DC16: 0 | DD16: 0 | DE16: 0 | DF16: 0 | DG16: 8 | DH16: 4283 | DI16: 1
A17: Сов | B17: ДМШ № 30 | C17: 1390 | D17: 23 | E17: 13 | F17: 57 | G17: 3 | H17: 1 | I17: 10 | J17: 43.5 | K17: 86.95652174 | L17: 32 | M17: 139.1304348 | N17: 278.2608696 | O17: 44 | P17: 191.3043478 | Q17: 573.9130435 | R17: 17 | S17: 73.91304348 | T17: 221.7391304 | U17: 1160.9 | V17: 1 | W17: 7 | X17: 30.43478261 | Y17: 60.86956522 | Z17: 21 | AA17: 91.30434783 | AB17: 182.6086957 | AC17: 138 | AD17: 600 | AE17: 1800 | AF17: 72 | AG17: 313.0434783 | AH17: 939.1304348 | AI17: 2982.608696 | AJ17: 1 | AK17: 5 | AL17: 21.73913043 | AM17: 43.47826087 | AN17: 2 | AO17: 8.695652174 | AP17: 17.39130435 | AQ17: 1 | AR17: 4.347826087 | AS17: 13.04347826 | AT17: 1 | AU17: 4.347826087 | AV17: 13.04347826 | AW17: 86.95652174 | AX17: 4 | AY17: 5 | AZ17: 0 | BA17: 0 | BB17: 8 | BC17: 24 | BD17: 0 | BE17: 0 | BF17: 24 | BG17: 2 | BH17: 0 | BI17: 3 | BJ17: 3 | BK17: 6 | BL17: 1 | BM17: 1 | BN17: 1 | BO17: 3 | BP17: 1 | BQ17: 5 | BR17: 5 | BS17: 5 | BT17: 1 | BU17: 0 | BV17: 0.0 | BW17: 0 | BX17: 0 | BY17: 0 | BZ17: 11 | CA17: 7 | CB17: 0 | CC17: 0 | CD17: 0 | CE17: 0 | CF17: 0 | CG17: 0 | CH17: 0 | CI17: 0 | CJ17: 0 | CK17: 0 | CL17: 0 | CM17: 0 | CN17: 0 | CO17: 0.0 | CP17: 0 | CQ17: 0 | CR17: 0 | CS17: 5 | CT17: 5 | CU17: 0 | CV17: 5 | CW17: 5 | CX17: 5 | CY17: 15 | CZ17: 11 | DB17: 0 | DC17: 0 | DD17: 0 | DE17: 0 | DF17: 0 | DG17: 8 | DH17: 4283 | DI17: 1
A18: Сов | B18: ДМШ № 23 | C18: 1390 | D18: 23 | E18: 13 | F18: 57 | G18: 3 | H18: 1 | I18: 10 | J18: 43.5 | K18: 86.95652174 | L18: 32 | M18: 139.1304348 | N18: 278.2608696 | O18: 44 | P18: 191.3043478 | Q18: 573.9130435 | R18: 17 | S18: 73.91304348 | T18: 221.7391304 | U18: 1160.9 | V18: 1 | W18: 7 | X18: 30.43478261 | Y18: 60.86956522 | Z18: 21 | AA18: 91.30434783 | AB18: 182.6086957 | AC18: 138 | AD18: 600 | AE18: 1800 | AF18: 72 | AG18: 313.0434783 | AH18: 939.1304348 | AI18: 2982.608696 | AJ18: 1 | AK18: 5 | AL18: 21.73913043 | AM18: 43.47826087 | AN18: 2 | AO18: 8.695652174 | AP18: 17.39130435 | AQ18: 1 | AR18: 4.347826087 | AS18: 13.04347826 | AT18: 1 | AU18: 4.347826087 | AV18: 13.04347826 | AW18: 86.95652174 | AX18: 4 | AY18: 5 | AZ18: 0 | BA18: 0 | BB18: 8 | BC18: 24 | BD18: 0 | BE18: 0 | BF18: 24 | BG18: 2 | BH18: 0 | BI18: 3 | BJ18: 3 | BK18: 6 | BL18: 1 | BM18: 1 | BN18: 1 | BO18: 3 | BP18: 1 | BQ18: 5 | BR18: 5 | BS18: 5 | BT18: 1 | BU18: 0 | BV18: 0.0 | BW18: 0 | BX18: 0 | BY18: 0 | BZ18: 11 | CA18: 7 | CB18: 0 | CC18: 0 | CD18: 0 | CE18: 0 | CF18: 0 | CG18: 0 | CH18: 0 | CI18: 0 | CJ18: 0 | CK18: 0 | CL18: 0 | CM18: 0 | CN18: 0 | CO18: 0.0 | CP18: 0 | CQ18: 0 | CR18: 0 | CS18: 5 | CT18: 5 | CU18: 0 | CV18: 5 | CW18: 5 | CX18: 5 | CY18: 15 | CZ18: 11 | DB18: 0 | DC18: 0 | DD18: 0 | DE18: 0 | DF18: 0 | DG18: 8 | DH18: 4283 | DI18: 1
A19: Сов | B19: ДШИ № 4 | C19: 1390 | D19: 23 | E19: 13 | F19: 57 | G19: 3 | H19: 1 | I19: 10 | J19: 43.5 | K19: 86.95652174 | L19: 32 | M19: 139.1304348 | N19: 278.2608696 | O19: 44 | P19: 191.3043478 | Q19: 573.9130435 | R19: 17 | S19: 73.91304348 | T19: 221.7391304 | U19: 1160.9 | V19: 1 | W19: 7 | X19: 30.43478261 | Y19: 60.86956522 | Z19: 21 | AA19: 91.30434783 | AB19: 182.6086957 | AC19: 138 | AD19: 600 | AE19: 1800 | AF19: 72 | AG19: 313.0434783 | AH19: 939.1304348 | AI19: 2982.608696 | AJ19: 1 | AK19: 5 | AL19: 21.73913043 | AM19: 43.47826087 | AN19: 2 | AO19: 8.695652174 | AP19: 17.39130435 | AQ19: 1 | AR19: 4.347826087 | AS19: 13.04347826 | AT19: 1 | AU19: 4.347826087 | AV19: 13.04347826 | AW19: 86.95652174 | AX19: 4 | AY19: 5 | AZ19: 0 | BA19: 0 | BB19: 8 | BC19: 24 | BD19: 0 | BE19: 0 | BF19: 24 | BG19: 2 | BH19: 0 | BI19: 3 | BJ19: 3 | BK19: 6 | BL19: 1 | BM19: 1 | BN19: 1 | BO19: 3 | BP19: 1 | BQ19: 5 | BR19: 5 | BS19: 5 | BT19: 1 | BU19: 0 | BV19: 0.0 | BW19: 0 | BX19: 0 | BY19: 0 | BZ19: 11 | CA19: 7 | CB19: 0 | CC19: 0 | CD19: 0 | CE19: 0 | CF19: 0 | CG19: 0 | CH19: 0 | CI19: 0 | CJ19: 0 | CK19: 0 | CL19: 0 | CM19: 0 | CN19: 0 | CO19: 0.0 | CP19: 0 | CQ19: 0 | CR19: 0 | CS19: 5 | CT19: 5 | CU19: 0 | CV19: 5 | CW19: 5 | CX19: 5 | CY19: 15 | CZ19: 11 | DB19: 0 | DC19: 0 | DD19: 0 | DE19: 0 | DF19: 0 | DG19: 8 | DH19: 4283 | DI19: 1
A20: Сов | B20: ДМШ № 19 | C20: 1390 | D20: 23 | E20: 13 | F20: 57 | G20: 3 | H20: 1 | I20: 10 | J20: 43.5 | K20: 86.95652174 | L20: 32 | M20: 139.1304348 | N20: 278.2608696 | O20: 44 | P20: 191.3043478 | Q20: 573.9130435 | R20: 17 | S20: 73.91304348 | T20: 221.7391304 | U20: 1160.9 | V20: 1 | W20: 7 | X20: 30.43478261 | Y20: 60.86956522 | Z20: 21 | AA20: 91.30434783 | AB20: 182.6086957 | AC20: 138 | AD20: 600 | AE20: 1800 | AF20: 72 | AG20: 313.0434783 | AH20: 939.1304348 | AI20: 2982.608696 | AJ20: 1 | AK20: 5 | AL20: 21.73913043 | AM20: 43.47826087 | AN20: 2 | AO20: 8.695652174 | AP20: 17.39130435 | AQ20: 1 | AR20: 4.347826087 | AS20: 13.04347826 | AT20: 1 | AU20: 4.347826087 | AV20: 13.04347826 | AW20: 86.95652174 | AX20: 4 | AY20: 5 | AZ20: 0 | BA20: 0 | BB20: 8 | BC20: 24 | BD20: 0 | BE20: 0 | BF20: 24 | BG20: 2 | BH20: 0 | BI20: 3 | BJ20: 3 | BK20: 6 | BL20: 1 | BM20: 1 | BN20: 1 | BO20: 3 | BP20: 1 | BQ20: 5 | BR20: 5 | BS20: 5 | BT20: 1 | BU20: 0 | BV20: 0.0 | BW20: 0 | BX20: 0 | BY20: 0 | BZ20: 11 | CA20: 7 | CB20: 0 | CC20: 0 | CD20: 0 | CE20: 0 | CF20: 0 | CG20: 0 | CH20: 0 | CI20: 0 | CJ20: 0 | CK20: 0 | CL20: 0 | CM20: 0 | CN20: 0 | CO20: 0.0 | CP20: 0 | CQ20: 0 | CR20: 0 | CS20: 5 | CT20: 5 | CU20: 0 | CV20: 5 | CW20: 5 | CX20: 5 | CY20: 15 | CZ20: 11 | DB20: 0 | DC20: 0 | DD20: 0 | DE20: 0 | DF20: 0 | DG20: 8 | DH20: 4283 | DI20: 1
A21: Сов | B21: ДШИ № 6 | C21: 1390 | D21: 23 | E21: 13 | F21: 57 | G21: 3 | H21: 1 | I21: 10 | J21: 43.5 | K21: 86.95652174 | L21: 32 | M21: 139.1304348 | N21: 278.2608696 | O21: 44 | P21: 191.3043478 | Q21: 573.9130435 | R21: 17 | S21: 73.91304348 | T21: 221.7391304 | U21: 1160.9 | V21: 1 | W21: 7 | X21: 30.43478261 | Y21: 60.86956522 | Z21: 21 | AA21: 91.30434783 | AB21: 182.6086957 | AC21: 138 | AD21: 600 | AE21: 1800 | AF21: 72 | AG21: 313.0434783 | AH21: 939.1304348 | AI21: 2982.608696 | AJ21: 1 | AK21: 5 | AL21: 21.73913043 | AM21: 43.47826087 | AN21: 2 | AO21: 8.695652174 | AP21: 17.39130435 | AQ21: 1 | AR21: 4.347826087 | AS21: 13.04347826 | AT21: 1 | AU21: 4.347826087 | AV21: 13.04347826 | AW21: 86.95652174 | AX21: 4 | AY21: 5 | AZ21: 0 | BA21: 0 | BB21: 8 | BC21: 24 | BD21: 0 | BE21: 0 | BF21: 24 | BG21: 2 | BH21: 0 | BI21: 3 | BJ21: 3 | BK21: 6 | BL21: 1 | BM21: 1 | BN21: 1 | BO21: 3 | BP21: 1 | BQ21: 5 | BR21: 5 | BS21: 5 | BT21: 1 | BU21: 0 | BV21: 0.0 | BW21: 0 | BX21: 0 | BY21: 0 | BZ21: 11 | CA21: 7 | CB21: 0 | CC21: 0 | CD21: 0 | CE21: 0 | CF21: 0 | CG21: 0 | CH21: 0 | CI21: 0 | CJ21: 0 | CK21: 0 | CL21: 0 | CM21: 0 | CN21: 0 | CO21: 0.0 | CP21: 0 | CQ21: 0 | CR21: 0 | CS21: 5 | CT21: 5 | CU21: 0 | CV21: 5 | CW21: 5 | CX21: 5 | CY21: 15 | CZ21: 11 | DB21: 0 | DC21: 0 | DD21: 0 | DE21: 0 | DF21: 0 | DG21: 8 | DH21: 4283 | DI21: 1
A22: Сов | B22: ДХШ № 1 | C22: 1390 | D22: 23 | E22: 13 | F22: 57 | G22: 3 | H22: 1 | I22: 10 | J22: 43.5 | K22: 86.95652174 | L22: 32 | M22: 139.1304348 | N22: 278.2608696 | O22: 44 | P22: 191.3043478 | Q22: 573.9130435 | R22: 17 | S22: 73.91304348 | T22: 221.7391304 | U22: 1160.9 | V22: 1 | W22: 7 | X22: 30.43478261 | Y22: 60.86956522 | Z22: 21 | AA22: 91.30434783 | AB22: 182.6086957 | AC22: 138 | AD22: 600 | AE22: 1800 | AF22: 72 | AG22: 313.0434783 | AH22: 939.1304348 | AI22: 2982.608696 | AJ22: 1 | AK22: 5 | AL22: 21.73913043 | AM22: 43.47826087 | AN22: 2 | AO22: 8.695652174 | AP22: 17.39130435 | AQ22: 1 | AR22: 4.347826087 | AS22: 13.04347826 | AT22: 1 | AU22: 4.347826087 | AV22: 13.04347826 | AW22: 86.95652174 | AX22: 4 | AY22: 5 | AZ22: 0 | BA22: 0 | BB22: 8 | BC22: 24 | BD22: 0 | BE22: 0 | BF22: 24 | BG22: 2 | BH22: 0 | BI22: 3 | BJ22: 3 | BK22: 6 | BL22: 1 | BM22: 1 | BN22: 1 | BO22: 3 | BP22: 1 | BQ22: 5 | BR22: 5 | BS22: 5 | BT22: 1 | BU22: 0 | BV22: 0.0 | BW22: 0 | BX22: 0 | BY22: 0 | BZ22: 11 | CA22: 7 | CB22: 0 | CC22: 0 | CD22: 0 | CE22: 0 | CF22: 0 | CG22: 0 | CH22: 0 | CI22: 0 | CJ22: 0 | CK22: 0 | CL22: 0 | CM22: 0 | CN22: 0 | CO22: 0.0 | CP22: 0 | CQ22: 0 | CR22: 0 | CS22: 5 | CT22: 5 | CU22: 0 | CV22: 5 | CW22: 5 | CX22: 5 | CY22: 15 | CZ22: 11 | DB22: 0 | DC22: 0 | DD22: 0 | DE22: 0 | DF22: 0 | DG22: 8 | DH22: 4283 | DI22: 1
